[Event "*** SCC Grand Prix: Titled Tuesday Blitz"]
[Site "Chess.com"]
[Date "2020.06.02"]
[Round "3"]
[White "TudorAnton"]
[Black "KNVB"]
[Result "0-1"]
[WhiteElo "2419"]
[BlackElo "2687"]
[TimeControl "180+1"]
[EndTime "10:28:33 PDT"]
[Termination "KNVB won by resignation"]

1. d4 {[%clk 0:03:00.9]} 1... Nf6 {[%clk 0:02:54]} 2. c4 {[%clk 0:02:52]} 2...
e6 {[%clk 0:02:52.7]} 3. Nc3 {[%clk 0:02:50.7]} 3... Bb4 {[%clk 0:02:52.1]} 4.
Nf3 {[%clk 0:02:45.9]} 4... c5 {[%clk 0:02:47.3]} 5. g3 {[%clk 0:02:43.8]} 5...
cxd4 {[%clk 0:02:42.3]} 6. Nxd4 {[%clk 0:02:42.3]} 6... Qc7 {[%clk 0:02:42.8]}
7. Bg2 {[%clk 0:02:38.6]} 7... a6 {[%clk 0:02:42.1]} 8. O-O {[%clk 0:02:36.7]}
8... O-O {[%clk 0:02:40.4]} 9. Bg5 {[%clk 0:02:29.5]} 9... Be7 {[%clk
0:02:39.1]} 10. Rc1 {[%clk 0:02:27.8]} 10... h6 {[%clk 0:02:36.4]} 11. Be3
{[%clk 0:02:18.8]} 11... d6 {[%clk 0:02:31.7]} 12. h3 {[%clk 0:01:59.7]} 12...
Rd8 {[%clk 0:02:30.8]} 13. Nb3 {[%clk 0:01:51.8]} 13... Nbd7 {[%clk 0:02:29.8]}
14. Qd3 {[%clk 0:01:23.4]} 14... Ne5 {[%clk 0:02:22.7]} 15. Qb1 {[%clk
0:01:22.4]} 15... Nxc4 {[%clk 0:02:19.9]} 16. Bd4 {[%clk 0:01:15.4]} 16... Bd7
{[%clk 0:01:51.3]} 17. e4 {[%clk 0:00:48.6]} 17... Rac8 {[%clk 0:01:49.7]} 18.
f4 {[%clk 0:00:41.4]} 18... b5 {[%clk 0:01:37.3]} 19. Kh2 {[%clk 0:00:37.5]}
19... Bc6 {[%clk 0:01:25.4]} 20. Rce1 {[%clk 0:00:36]} 20... e5 {[%clk
0:01:21.3]} 21. Bg1 {[%clk 0:00:32.3]} 21... Qb7 {[%clk 0:01:15.4]} 22. Re2
{[%clk 0:00:20.5]} 22... a5 {[%clk 0:01:11.7]} 23. Rfe1 {[%clk 0:00:16.9]} 23...
b4 {[%clk 0:01:01.8]} 24. Nd5 {[%clk 0:00:16.6]} 24... Nxd5 {[%clk 0:01:02.2]}
25. exd5 {[%clk 0:00:17.5]} 25... Bxd5 {[%clk 0:01:03.1]} 26. Bxd5 {[%clk
0:00:12.9]} 26... Qxd5 {[%clk 0:01:04]} 27. Rd1 {[%clk 0:00:09.7]} 27... Qb5
{[%clk 0:01:02.2]} 28. Nd4 {[%clk 0:00:08.5]} 28... exd4 {[%clk 0:00:50.4]} 29.
Rxe7 {[%clk 0:00:09.4]} 29... Ne3 {[%clk 0:00:51]} 30. Bxe3 {[%clk 0:00:08.6]}
30... Qe2+ {[%clk 0:00:50.6]} 31. Kh1 {[%clk 0:00:07.9]} 31... Rc2 {[%clk
0:00:50.4]} 32. Qxc2 {[%clk 0:00:05.4]} 32... Qxc2 {[%clk 0:00:50.5]} 33. Rxd4
{[%clk 0:00:05.4]} 33... Qxb2 {[%clk 0:00:43.9]} 34. Rd2 {[%clk 0:00:06.3]}
34... Qc1+ {[%clk 0:00:41.5]} 35. Kg2 {[%clk 0:00:06.2]} 35... Qc6+ {[%clk
0:00:41.3]} 36. Kh2 {[%clk 0:00:04.9]} 36... Re8 {[%clk 0:00:41.9]} 37. Rxe8+
{[%clk 0:00:03.6]} 37... Qxe8 {[%clk 0:00:42.8]} 38. Bf2 {[%clk 0:00:02.8]}
38... Qe6 {[%clk 0:00:38]} 39. Kg1 {[%clk 0:00:01.5]} 0-1

[Event "*** SCC Grand Prix: Titled Tuesday Blitz"]
[Site "Chess.com"]
[Date "2020.06.02"]
[Round "3"]
[White "amelia91"]
[Black "TigranMukhutdinov"]
[Result "0-1"]
[WhiteElo "1959"]
[BlackElo "2455"]
[TimeControl "180+1"]
[EndTime "10:28:34 PDT"]
[Termination "TigranMukhutdinov won by resignation"]

1. d4 {[%clk 0:03:00.9]} 1... Nf6 {[%clk 0:02:59.6]} 2. Nf3 {[%clk 0:03:00.9]}
2... g6 {[%clk 0:02:59.1]} 3. e3 {[%clk 0:03:00.5]} 3... Bg7 {[%clk 0:02:59.5]}
4. c4 {[%clk 0:03:00.4]} 4... O-O {[%clk 0:02:59.4]} 5. Nc3 {[%clk 0:03:00.2]}
5... d5 {[%clk 0:02:58.6]} 6. Be2 {[%clk 0:03:00.3]} 6... dxc4 {[%clk
0:02:54.6]} 7. Bxc4 {[%clk 0:02:59.8]} 7... c5 {[%clk 0:02:55.2]} 8. h3 {[%clk
0:02:58.5]} 8... cxd4 {[%clk 0:02:53.9]} 9. Nxd4 {[%clk 0:02:57.8]} 9... e5
{[%clk 0:02:52.5]} 10. Nf3 {[%clk 0:02:56]} 10... Qxd1+ {[%clk 0:02:52.5]} 11.
Kxd1 {[%clk 0:02:56.1]} 11... Nc6 {[%clk 0:02:50]} 12. Ke2 {[%clk 0:02:47.8]}
12... e4 {[%clk 0:02:50.4]} 13. Nd4 {[%clk 0:02:40.3]} 13... Ne5 {[%clk
0:02:49.8]} 14. Bb3 {[%clk 0:02:38.2]} 14... b6 {[%clk 0:02:47.3]} 15. Bd2
{[%clk 0:02:30.6]} 15... Ba6+ {[%clk 0:02:47]} 16. Ke1 {[%clk 0:02:29.9]} 16...
Nd3+ {[%clk 0:02:43.6]} 17. Kf1 {[%clk 0:02:23]} 17... Nxb2+ {[%clk 0:02:43.6]}
18. Kg1 {[%clk 0:02:22.7]} 18... Nc4 {[%clk 0:02:41.1]} 19. Be1 {[%clk
0:02:20.5]} 19... Rfc8 {[%clk 0:02:38.1]} 20. Kh2 {[%clk 0:02:15.7]} 20... Ne5
{[%clk 0:02:33.3]} 21. f4 {[%clk 0:02:07.6]} 21... exf3 {[%clk 0:02:30.9]} 22.
gxf3 {[%clk 0:02:07.6]} 22... Bc4 {[%clk 0:02:27]} 23. Ba4 {[%clk 0:01:55.1]}
23... a6 {[%clk 0:02:24.8]} 24. Bg3 {[%clk 0:01:54.2]} 24... Nh5 {[%clk
0:02:20.6]} 25. Rac1 {[%clk 0:01:44.1]} 25... Nxg3 {[%clk 0:02:19]} 26. Kxg3
{[%clk 0:01:44.2]} 26... Nd3 {[%clk 0:02:17.8]} 27. Rc2 {[%clk 0:01:36.8]} 27...
Nc5 {[%clk 0:02:17.6]} 28. Bc6 {[%clk 0:01:29.4]} 28... Ra7 {[%clk 0:02:09.4]}
29. Nd5 {[%clk 0:01:19.3]} 29... Bxd4 {[%clk 0:02:03.8]} 30. exd4 {[%clk
0:01:15.3]} 30... Rxc6 {[%clk 0:02:04.2]} 31. Rxc4 {[%clk 0:01:11.6]} 31... Ne4+
{[%clk 0:01:59.9]} 32. fxe4 {[%clk 0:01:09.7]} 32... Rxc4 {[%clk 0:02:00.8]} 33.
Rd1 {[%clk 0:01:03.9]} 33... b5 {[%clk 0:02:00.1]} 34. Kf4 {[%clk 0:00:58.4]}
34... Kg7 {[%clk 0:01:59.4]} 35. Ke5 {[%clk 0:00:57.7]} 35... Ra8 {[%clk
0:01:55.8]} 36. Nf6 {[%clk 0:00:52.9]} 36... Rc6 {[%clk 0:01:52.9]} 37. Nd5
{[%clk 0:00:48.7]} 37... Re8+ {[%clk 0:01:52.5]} 38. Kf4 {[%clk 0:00:48.7]}
38... Rc2 {[%clk 0:01:50.3]} 39. a3 {[%clk 0:00:40.7]} 39... Rf2+ {[%clk
0:01:47.1]} 40. Ke3 {[%clk 0:00:40.2]} 40... Rh2 {[%clk 0:01:45.7]} 41. Nf4
{[%clk 0:00:34.2]} 41... g5 {[%clk 0:01:43.9]} 42. Nh5+ {[%clk 0:00:26.2]} 42...
Kg6 {[%clk 0:01:43.4]} 43. Ng3 {[%clk 0:00:26.3]} 43... Rxh3 {[%clk 0:01:41]}
44. Kf3 {[%clk 0:00:26.3]} 44... h5 {[%clk 0:01:38.8]} 45. Kg2 {[%clk
0:00:26.1]} 45... g4 {[%clk 0:01:38.4]} 46. d5 {[%clk 0:00:25]} 46... h4 {[%clk
0:01:36.1]} 47. Nf5 {[%clk 0:00:24.9]} 47... Rxe4 {[%clk 0:01:29.2]} 48. d6
{[%clk 0:00:24.5]} 48... Re2+ {[%clk 0:01:27.5]} 49. Kf1 {[%clk 0:00:24.2]}
49... Rb2 {[%clk 0:01:26.2]} 50. Kg1 {[%clk 0:00:17.9]} 50... Rhh2 {[%clk
0:01:15.8]} 51. Ne3 {[%clk 0:00:16.7]} 51... Rhd2 {[%clk 0:01:12.8]} 52. d7
{[%clk 0:00:10.3]} 52... Rxd1+ {[%clk 0:01:12.1]} 53. Nxd1 {[%clk 0:00:10.6]}
53... Rd2 {[%clk 0:01:13]} 0-1

[Event "*** SCC Grand Prix: Titled Tuesday Blitz"]
[Site "Chess.com"]
[Date "2020.06.02"]
[Round "3"]
[White "yobdc"]
[Black "GregShahade"]
[Result "1-0"]
[WhiteElo "2168"]
[BlackElo "2581"]
[TimeControl "180+1"]
[EndTime "10:28:35 PDT"]
[Termination "yobdc won by checkmate"]

1. e4 {[%clk 0:03:00.9]} 1... e5 {[%clk 0:02:59.7]} 2. Nf3 {[%clk 0:03:01.2]}
2... Nc6 {[%clk 0:02:58.6]} 3. Bb5 {[%clk 0:03:01.4]} 3... a6 {[%clk 0:02:58.3]}
4. Bxc6 {[%clk 0:03:01.7]} 4... dxc6 {[%clk 0:02:59.2]} 5. O-O {[%clk
0:03:01.6]} 5... Bd6 {[%clk 0:02:58.7]} 6. d4 {[%clk 0:03:01.1]} 6... exd4
{[%clk 0:02:59.6]} 7. Qxd4 {[%clk 0:03:01.3]} 7... f6 {[%clk 0:03:00]} 8. Be3
{[%clk 0:02:59.6]} 8... Ne7 {[%clk 0:02:59.9]} 9. Nbd2 {[%clk 0:02:59.6]} 9...
Be6 {[%clk 0:03:00.1]} 10. Rfd1 {[%clk 0:02:56.5]} 10... Ng6 {[%clk 0:02:59.6]}
11. Nc4 {[%clk 0:02:56.1]} 11... Bxc4 {[%clk 0:02:59.4]} 12. Qxc4 {[%clk
0:02:56.2]} 12... Qe7 {[%clk 0:03:00]} 13. a4 {[%clk 0:02:51.6]} 13... O-O-O
{[%clk 0:02:57.5]} 14. b4 {[%clk 0:02:47.5]} 14... Rhe8 {[%clk 0:02:56.7]} 15.
b5 {[%clk 0:02:42.9]} 15... Ne5 {[%clk 0:02:32.4]} 16. Nxe5 {[%clk 0:02:12.4]}
16... Qxe5 {[%clk 0:02:33.3]} 17. bxa6 {[%clk 0:02:02.5]} 17... Qxh2+ {[%clk
0:02:13.7]} 18. Kf1 {[%clk 0:02:02.4]} 18... Qh1+ {[%clk 0:01:22.1]} 19. Ke2
{[%clk 0:02:02.5]} 19... Qh5+ {[%clk 0:01:22.7]} 20. f3 {[%clk 0:01:59.7]} 20...
bxa6 {[%clk 0:00:34.3]} 21. Qxc6 {[%clk 0:01:59.5]} 21... Qh2 {[%clk 0:00:31.8]}
22. Qxa6+ {[%clk 0:01:57.4]} 22... Kd7 {[%clk 0:00:30.6]} 23. Kf1 {[%clk
0:01:22.9]} 23... Qh1+ {[%clk 0:00:28.5]} 24. Bg1 {[%clk 0:01:23]} 24... Ke7
{[%clk 0:00:28.7]} 25. Qc4 {[%clk 0:01:15.8]} 25... Kf8 {[%clk 0:00:28.3]} 26.
a5 {[%clk 0:01:11.8]} 26... Bh2 {[%clk 0:00:28.1]} 27. Qc5+ {[%clk 0:01:06.1]}
27... Kg8 {[%clk 0:00:28.6]} 28. a6 {[%clk 0:00:58.6]} 28... f5 {[%clk
0:00:28.7]} 29. Rxd8 {[%clk 0:00:55.9]} 29... Rxd8 {[%clk 0:00:27.5]} 30. a7
{[%clk 0:00:54]} 30... Ra8 {[%clk 0:00:25.4]} 31. Qd5+ {[%clk 0:00:52.9]} 31...
Kf8 {[%clk 0:00:25.9]} 32. Qxa8+ {[%clk 0:00:47.8]} 32... Ke7 {[%clk 0:00:26.5]}
33. Qd8+ {[%clk 0:00:40.3]} 33... Kxd8 {[%clk 0:00:25.7]} 34. a8=Q+ {[%clk
0:00:40.7]} 34... Ke7 {[%clk 0:00:26]} 35. Qa3+ {[%clk 0:00:39.7]} 35... Bd6
{[%clk 0:00:25.9]} 36. Qe3 {[%clk 0:00:36.5]} 36... f4 {[%clk 0:00:26.1]} 37.
Qd4 {[%clk 0:00:35.8]} 37... Qh5 {[%clk 0:00:26.4]} 38. Qxg7+ {[%clk 0:00:35.4]}
38... Ke6 {[%clk 0:00:25.7]} 39. Rd1 {[%clk 0:00:33.9]} 39... Qb5+ {[%clk
0:00:25.7]} 40. Ke1 {[%clk 0:00:29.3]} 40... Bb4+ {[%clk 0:00:25.4]} 41. c3
{[%clk 0:00:29.5]} 41... Be7 {[%clk 0:00:25.4]} 42. Qg8+ {[%clk 0:00:28.5]}
42... Ke5 {[%clk 0:00:24.9]} 43. Rd5+ {[%clk 0:00:27.7]} 43... Kf6 {[%clk
0:00:24.5]} 44. Bd4# {[%clk 0:00:26.9]} 1-0

[Event "*** SCC Grand Prix: Titled Tuesday Blitz"]
[Site "Chess.com"]
[Date "2020.06.02"]
[Round "3"]
[White "Ranindu2003"]
[Black "Roza_Idrisova"]
[Result "1-0"]
[WhiteElo "2469"]
[BlackElo "2176"]
[TimeControl "180+1"]
[EndTime "10:28:35 PDT"]
[Termination "Ranindu2003 won on time"]

1. e4 {[%clk 0:03:00.1]} 1... c6 {[%clk 0:02:58.8]} 2. d4 {[%clk 0:02:58.9]}
2... d5 {[%clk 0:02:58.6]} 3. e5 {[%clk 0:02:59.1]} 3... c5 {[%clk 0:02:57.3]}
4. dxc5 {[%clk 0:02:58.3]} 4... e6 {[%clk 0:02:57]} 5. Nf3 {[%clk 0:02:57]} 5...
Bxc5 {[%clk 0:02:56.6]} 6. a3 {[%clk 0:02:57.6]} 6... Nc6 {[%clk 0:02:52.3]} 7.
b4 {[%clk 0:02:56.2]} 7... Bb6 {[%clk 0:02:52.1]} 8. Bd3 {[%clk 0:02:55.3]} 8...
Nge7 {[%clk 0:02:51.6]} 9. O-O {[%clk 0:02:54.2]} 9... Ng6 {[%clk 0:02:49.6]}
10. Re1 {[%clk 0:02:52.5]} 10... Bc7 {[%clk 0:02:48.9]} 11. Bb2 {[%clk
0:02:50.8]} 11... a5 {[%clk 0:02:41.8]} 12. b5 {[%clk 0:02:49.4]} 12... Nb8
{[%clk 0:02:40.6]} 13. Nbd2 {[%clk 0:02:41.9]} 13... Bb6 {[%clk 0:02:40.1]} 14.
c4 {[%clk 0:02:34.5]} 14... O-O {[%clk 0:02:19.4]} 15. cxd5 {[%clk 0:02:24.2]}
15... Nf4 {[%clk 0:02:11.5]} 16. Bf1 {[%clk 0:02:13.2]} 16... exd5 {[%clk
0:02:05.2]} 17. Nb3 {[%clk 0:01:47.2]} 17... Bf5 {[%clk 0:01:53.4]} 18. Qd2
{[%clk 0:01:42.9]} 18... Ne6 {[%clk 0:01:46.5]} 19. a4 {[%clk 0:01:26.6]} 19...
Be4 {[%clk 0:01:39.2]} 20. Nfd4 {[%clk 0:01:19.3]} 20... Nd7 {[%clk 0:01:33.2]}
21. f3 {[%clk 0:01:17.5]} 21... Bg6 {[%clk 0:01:31.4]} 22. Kh1 {[%clk
0:01:14.7]} 22... Rc8 {[%clk 0:01:18.1]} 23. Rac1 {[%clk 0:01:03.3]} 23... Ndc5
{[%clk 0:01:11.5]} 24. Ba3 {[%clk 0:00:55.6]} 24... Re8 {[%clk 0:01:01.1]} 25.
Nxe6 {[%clk 0:00:44.7]} 25... Nxe6 {[%clk 0:00:55.5]} 26. Bd6 {[%clk 0:00:43]}
26... Qg5 {[%clk 0:00:25.4]} 27. Qxd5 {[%clk 0:00:32.7]} 27... Rxc1 {[%clk
0:00:18.6]} 28. Nxc1 {[%clk 0:00:31.9]} 1-0

[Event "*** SCC Grand Prix: Titled Tuesday Blitz"]
[Site "Chess.com"]
[Date "2020.06.02"]
[Round "3"]
[White "chargemax23"]
[Black "Eloist"]
[Result "1-0"]
[WhiteElo "2588"]
[BlackElo "2224"]
[TimeControl "180+1"]
[EndTime "10:28:35 PDT"]
[Termination "chargemax23 won by resignation"]

1. c4 {[%clk 0:03:00.9]} 1... e5 {[%clk 0:02:59.7]} 2. Nc3 {[%clk 0:02:59.6]}
2... Nf6 {[%clk 0:02:59.6]} 3. Nf3 {[%clk 0:02:59.4]} 3... Nc6 {[%clk
0:02:59.6]} 4. e4 {[%clk 0:02:59.2]} 4... Bb4 {[%clk 0:02:59]} 5. d3 {[%clk
0:02:58]} 5... d6 {[%clk 0:02:59.1]} 6. h3 {[%clk 0:02:57.4]} 6... Bc5 {[%clk
0:02:59]} 7. Be2 {[%clk 0:02:55.1]} 7... a6 {[%clk 0:02:59]} 8. O-O {[%clk
0:02:54.4]} 8... O-O {[%clk 0:02:58.8]} 9. Bg5 {[%clk 0:02:51.1]} 9... h6 {[%clk
0:02:58]} 10. Bh4 {[%clk 0:02:50.9]} 10... g5 {[%clk 0:02:40.6]} 11. Nxg5 {[%clk
0:02:46.5]} 11... hxg5 {[%clk 0:02:40.2]} 12. Bxg5 {[%clk 0:02:46.7]} 12... Be6
{[%clk 0:02:35.2]} 13. Kh1 {[%clk 0:02:45.7]} 13... Kg7 {[%clk 0:02:28.7]} 14.
f4 {[%clk 0:02:44.7]} 14... Be3 {[%clk 0:02:28.1]} 15. Qe1 {[%clk 0:02:11.7]}
15... Bxf4 {[%clk 0:02:20.9]} 16. Rxf4 {[%clk 0:02:02.7]} 16... exf4 {[%clk
0:02:19.1]} 17. Qh4 {[%clk 0:02:02.6]} 17... Rh8 {[%clk 0:02:16.6]} 18. Qxf4
{[%clk 0:02:02.1]} 18... Nh5 {[%clk 0:01:44.5]} 19. Bxh5 {[%clk 0:01:58.7]}
19... f6 {[%clk 0:01:44.5]} 20. Bxf6+ {[%clk 0:01:45.2]} 20... Qxf6 {[%clk
0:01:43.3]} 21. Qg3+ {[%clk 0:01:43.7]} 21... Kh7 {[%clk 0:01:28.1]} 22. Nd5
{[%clk 0:01:18.5]} 22... Bxd5 {[%clk 0:01:24.8]} 23. cxd5 {[%clk 0:01:18.4]}
23... Rhg8 {[%clk 0:01:23.3]} 24. Bg4 {[%clk 0:01:10.3]} 24... Ne5 {[%clk
0:01:18.2]} 25. Bf5+ {[%clk 0:01:06.7]} 25... Kh6 {[%clk 0:01:06.8]} 26. Qe3+
{[%clk 0:01:03.9]} 26... Qg5 {[%clk 0:01:06.8]} 27. Qe2 {[%clk 0:01:03.6]} 27...
Nxd3 {[%clk 0:01:01.4]} 28. Rg1 {[%clk 0:00:48.3]} 28... Nf4 {[%clk 0:00:57.6]}
29. Qc2 {[%clk 0:00:47.1]} 29... Rg7 {[%clk 0:00:44]} 30. Bg4 {[%clk 0:00:46.2]}
30... Ng6 {[%clk 0:00:34.8]} 31. Rf1 {[%clk 0:00:43.5]} 31... Rf8 {[%clk
0:00:31.6]} 32. Rg1 {[%clk 0:00:38]} 32... Ne5 {[%clk 0:00:30.5]} 33. Bf5 {[%clk
0:00:38]} 33... Qg3 {[%clk 0:00:26.3]} 34. Rf1 {[%clk 0:00:33.1]} 34... Rff7
{[%clk 0:00:21.9]} 35. Qd2+ {[%clk 0:00:30.8]} 35... Qg5 {[%clk 0:00:20.3]} 36.
Rf4 {[%clk 0:00:30.8]} 36... Rg8 {[%clk 0:00:16.3]} 37. Rh4+ {[%clk 0:00:29.8]}
37... Kg7 {[%clk 0:00:16.1]} 38. Qxg5+ {[%clk 0:00:30]} 1-0

[Event "*** SCC Grand Prix: Titled Tuesday Blitz"]
[Site "Chess.com"]
[Date "2020.06.02"]
[Round "3"]
[White "BocharovD"]
[Black "bait_or_mate"]
[Result "1-0"]
[WhiteElo "2771"]
[BlackElo "2542"]
[TimeControl "180+1"]
[EndTime "10:28:37 PDT"]
[Termination "BocharovD won on time"]

1. d4 {[%clk 0:03:00.9]} 1... Nf6 {[%clk 0:02:59.7]} 2. c4 {[%clk 0:03:00.6]}
2... e6 {[%clk 0:02:59.7]} 3. g3 {[%clk 0:03:00.8]} 3... d5 {[%clk 0:02:59]} 4.
Nf3 {[%clk 0:03:01]} 4... Bb4+ {[%clk 0:02:58.5]} 5. Bd2 {[%clk 0:03:00.3]} 5...
Bd6 {[%clk 0:02:58.3]} 6. Nc3 {[%clk 0:02:57.9]} 6... Nc6 {[%clk 0:02:36.2]} 7.
cxd5 {[%clk 0:02:43.9]} 7... exd5 {[%clk 0:02:37.1]} 8. Bg2 {[%clk 0:02:42.6]}
8... O-O {[%clk 0:02:35.5]} 9. O-O {[%clk 0:02:42.4]} 9... h6 {[%clk 0:02:32.5]}
10. Nb5 {[%clk 0:02:40.2]} 10... Be7 {[%clk 0:02:30.4]} 11. Bf4 {[%clk
0:02:38.7]} 11... Ne8 {[%clk 0:02:26.2]} 12. Rc1 {[%clk 0:02:37.9]} 12... a6
{[%clk 0:02:25.1]} 13. Nc3 {[%clk 0:02:36.4]} 13... Be6 {[%clk 0:02:18.5]} 14.
Na4 {[%clk 0:02:24.4]} 14... Bd6 {[%clk 0:02:09.1]} 15. Nc5 {[%clk 0:02:21.7]}
15... Bxc5 {[%clk 0:02:07.5]} 16. Rxc5 {[%clk 0:02:20.7]} 16... Nd6 {[%clk
0:02:05.8]} 17. Qb3 {[%clk 0:02:08]} 17... Rb8 {[%clk 0:01:51.7]} 18. Rfc1
{[%clk 0:02:06.8]} 18... Ne4 {[%clk 0:01:46.8]} 19. R5c2 {[%clk 0:02:03.5]}
19... Re8 {[%clk 0:01:38.5]} 20. Qa4 {[%clk 0:01:35.6]} 20... Bg4 {[%clk
0:01:23.5]} 21. Ne5 {[%clk 0:01:30.5]} 21... Bd7 {[%clk 0:00:57.2]} 22. Nxc6
{[%clk 0:01:07.7]} 22... Bxc6 {[%clk 0:00:56]} 23. Qa3 {[%clk 0:01:08]} 23...
Qd7 {[%clk 0:00:46.6]} 24. h4 {[%clk 0:00:59.4]} 24... Nf6 {[%clk 0:00:43.1]}
25. Be5 {[%clk 0:00:57.5]} 25... Ng4 {[%clk 0:00:39.8]} 26. Bh3 {[%clk
0:00:57.2]} 26... f5 {[%clk 0:00:33.7]} 27. Bf4 {[%clk 0:00:56.5]} 27... Nf6
{[%clk 0:00:29.8]} 28. Qd3 {[%clk 0:00:45.3]} 28... g6 {[%clk 0:00:19.7]} 29.
Bxh6 {[%clk 0:00:43.6]} 29... Ne4 {[%clk 0:00:18.7]} 30. Bf4 {[%clk 0:00:43.2]}
30... Re7 {[%clk 0:00:15.2]} 31. Rxc6 {[%clk 0:00:38.1]} 31... bxc6 {[%clk
0:00:15]} 32. Qxa6 {[%clk 0:00:38.2]} 32... Rxb2 {[%clk 0:00:14.1]} 33. Rxc6
{[%clk 0:00:35.9]} 33... Rb1+ {[%clk 0:00:08.2]} 34. Kg2 {[%clk 0:00:35.6]} 1-0

[Event "*** SCC Grand Prix: Titled Tuesday Blitz"]
[Site "Chess.com"]
[Date "2020.06.02"]
[Round "3"]
[White "Titus369"]
[Black "bazar-wokzal"]
[Result "1/2-1/2"]
[WhiteElo "2585"]
[BlackElo "2395"]
[TimeControl "180+1"]
[EndTime "10:28:37 PDT"]
[Termination "Game drawn by repetition"]

1. e4 {[%clk 0:03:00.9]} 1... Nc6 {[%clk 0:02:59.3]} 2. d4 {[%clk 0:02:59.7]}
2... d5 {[%clk 0:02:59.2]} 3. e5 {[%clk 0:02:47.4]} 3... h5 {[%clk 0:02:58.8]}
4. h3 {[%clk 0:02:43.6]} 4... Bf5 {[%clk 0:02:57.7]} 5. c3 {[%clk 0:02:42.9]}
5... e6 {[%clk 0:02:57.4]} 6. Nf3 {[%clk 0:02:42.5]} 6... f6 {[%clk 0:02:48.7]}
7. Bb5 {[%clk 0:02:40.3]} 7... Ne7 {[%clk 0:02:39.8]} 8. Bf4 {[%clk 0:02:16.6]}
8... a6 {[%clk 0:02:38.9]} 9. Bd3 {[%clk 0:02:15.8]} 9... Qd7 {[%clk 0:02:27.7]}
10. Bxf5 {[%clk 0:02:04.7]} 10... Nxf5 {[%clk 0:02:25]} 11. Nbd2 {[%clk
0:02:03.1]} 11... O-O-O {[%clk 0:02:19.3]} 12. Nb3 {[%clk 0:01:33.7]} 12... g5
{[%clk 0:02:11.7]} 13. Bh2 {[%clk 0:01:32]} 13... g4 {[%clk 0:02:09]} 14. Nfd2
{[%clk 0:01:27.8]} 14... g3 {[%clk 0:01:55.8]} 15. Bxg3 {[%clk 0:01:21.1]} 15...
Nxg3 {[%clk 0:01:55.4]} 16. fxg3 {[%clk 0:01:22]} 16... fxe5 {[%clk 0:01:55.9]}
17. dxe5 {[%clk 0:01:20.9]} 17... Nxe5 {[%clk 0:01:55.5]} 18. Qe2 {[%clk
0:01:19.9]} 18... Bd6 {[%clk 0:01:53.9]} 19. O-O-O {[%clk 0:01:19.2]} 19... Rdg8
{[%clk 0:01:50.5]} 20. Qe3 {[%clk 0:01:11.8]} 20... Kb8 {[%clk 0:01:21.9]} 21.
Rhf1 {[%clk 0:00:58]} 21... Nc4 {[%clk 0:01:14.7]} 22. Nxc4 {[%clk 0:00:57.3]}
22... dxc4 {[%clk 0:01:14.8]} 23. Nd2 {[%clk 0:00:45.1]} 23... Rxg3 {[%clk
0:01:08.7]} 24. Qe2 {[%clk 0:00:45.3]} 24... b5 {[%clk 0:00:49.2]} 25. Ne4
{[%clk 0:00:42.9]} 25... Rg6 {[%clk 0:00:37.6]} 26. Qf3 {[%clk 0:00:32.7]} 26...
Qc6 {[%clk 0:00:35.1]} 27. Nxd6 {[%clk 0:00:15.7]} 27... Qxf3 {[%clk 0:00:32.6]}
28. Rxf3 {[%clk 0:00:13.1]} 28... cxd6 {[%clk 0:00:32.9]} 29. Rxd6 {[%clk
0:00:14]} 29... Rxg2 {[%clk 0:00:29.1]} 30. Rxe6 {[%clk 0:00:12.8]} 30... Rd8
{[%clk 0:00:24]} 31. Re7 {[%clk 0:00:08.7]} 31... Rg1+ {[%clk 0:00:21.8]} 32.
Kc2 {[%clk 0:00:08.9]} 32... Rg2+ {[%clk 0:00:22.1]} 33. Kc1 {[%clk 0:00:08.9]}
33... Rg1+ {[%clk 0:00:22.4]} 34. Kc2 {[%clk 0:00:09.3]} 34... Rg2+ {[%clk
0:00:21]} 35. Kc1 {[%clk 0:00:09.6]} 1/2-1/2

[Event "*** SCC Grand Prix: Titled Tuesday Blitz"]
[Site "Chess.com"]
[Date "2020.06.02"]
[Round "3"]
[White "lucachess49"]
[Black "imdarealist"]
[Result "0-1"]
[WhiteElo "2285"]
[BlackElo "2252"]
[TimeControl "180+1"]
[EndTime "10:28:37 PDT"]
[Termination "imdarealist won on time"]

1. d4 {[%clk 0:03:00.9]} 1... d5 {[%clk 0:02:59.6]} 2. c4 {[%clk 0:03:00.5]}
2... e6 {[%clk 0:03:00.1]} 3. Nc3 {[%clk 0:03:00.2]} 3... Nf6 {[%clk 0:03:00.4]}
4. cxd5 {[%clk 0:03:00.2]} 4... exd5 {[%clk 0:03:01.3]} 5. Bg5 {[%clk
0:02:59.7]} 5... c6 {[%clk 0:03:01.7]} 6. e3 {[%clk 0:02:59.7]} 6... Qb6 {[%clk
0:03:02.2]} 7. Qb3 {[%clk 0:02:48.1]} 7... Ne4 {[%clk 0:02:50.2]} 8. Qxb6 {[%clk
0:02:29.8]} 8... axb6 {[%clk 0:02:48.8]} 9. Nxe4 {[%clk 0:02:30.1]} 9... dxe4
{[%clk 0:02:47.3]} 10. Ne2 {[%clk 0:02:30.7]} 10... f5 {[%clk 0:02:32.8]} 11.
Nc3 {[%clk 0:02:24.9]} 11... Be6 {[%clk 0:02:32.8]} 12. a3 {[%clk 0:02:15.1]}
12... b5 {[%clk 0:02:28.1]} 13. d5 {[%clk 0:02:12.1]} 13... Bf7 {[%clk
0:02:23.5]} 14. dxc6 {[%clk 0:01:49.9]} 14... bxc6 {[%clk 0:02:23.9]} 15. Rd1
{[%clk 0:01:35.5]} 15... Nd7 {[%clk 0:02:13.6]} 16. Nxb5 {[%clk 0:01:22.1]}
16... cxb5 {[%clk 0:02:06.9]} 17. Bxb5 {[%clk 0:01:21.3]} 17... Be6 {[%clk
0:02:04.9]} 18. O-O {[%clk 0:01:17.4]} 18... Be7 {[%clk 0:01:24.1]} 19. Bf4
{[%clk 0:01:01.6]} 19... Bf6 {[%clk 0:01:13.6]} 20. Rd6 {[%clk 0:00:51.4]} 20...
Ke7 {[%clk 0:01:06.4]} 21. Rfd1 {[%clk 0:00:50.9]} 21... Rhd8 {[%clk 0:01:05.5]}
22. R6d2 {[%clk 0:00:22.7]} 22... Ne5 {[%clk 0:01:03.4]} 23. a4 {[%clk
0:00:15.7]} 23... Bb3 {[%clk 0:00:42.8]} 24. Rxd8 {[%clk 0:00:15.2]} 24... Rxd8
{[%clk 0:00:36.1]} 25. Rxd8 {[%clk 0:00:14.7]} 25... Kxd8 {[%clk 0:00:35.7]} 26.
a5 {[%clk 0:00:15]} 26... Bc4 {[%clk 0:00:24.4]} 27. Ba4 {[%clk 0:00:07.9]}
27... Nd3 {[%clk 0:00:21.9]} 28. Bb8 {[%clk 0:00:05.9]} 28... Nxb2 {[%clk
0:00:18.6]} 29. Bc6 {[%clk 0:00:05.6]} 29... Bc3 {[%clk 0:00:17.8]} 0-1